fUST/lending_fUST_20250603
["ID","MTS","AMOUNT","RATE_DAILY","PERIOD"]
[363901032,1748916644916,-1015.84,0.0001863,2]
[363901034,1748916644927,-440.0,0.0001863,2]
[363901036,1748916644936,-2449.28,0.0001863,2]
[363901038,1748916644946,-1872.97,0.0001863,2]
[363901040,1748916644955,-3386.92,0.0001863,2]
[363901042,1748916644964,-1271.01,0.0001863,2]
[363901044,1748916644973,-903.01,0.0001863,2]
[363901046,1748916644983,-440.0,0.0001863,2]
[363901048,1748916644992,-440.0,0.0001863,2]
[363901050,1748916645002,-1195.46,0.0001863,2]
[363901052,1748916645011,-440.0,0.0001863,2]
[363901054,1748916645020,-440.0,0.0001863,2]
[363901056,1748916645030,-1421.7,0.0001863,2]
[363901058,1748916645039,-440.0,0.0001863,2]
[363901060,1748916645049,-2000.0,0.000188,3]
[363901062,1748916645058,-12670.76136593,0.000188,3]
[363901064,1748916645068,-2771.30047706,0.00018831,2]
[363901066,1748916645077,-1002.7954795,0.00018866,2]
[363901068,1748916645086,-203.65779169,0.00018903,2]
[363901070,1748916645096,-440.0,0.00018903,2]
[363901072,1748916645105,-495.21,0.00018903,2]
[363901074,1748916645115,-440.0,0.00018903,2]
[363901076,1748916645126,-2904.1,0.00018903,2]
[363901078,1748916645135,-669.46,0.00018903,2]
[363901080,1748916645145,-815.71,0.00018903,2]
[363901082,1748916645155,-440.0,0.00018903,2]
[363901084,1748916645167,-301.89756893,0.00018903,2]
[363901086,1748916645178,-480.41,0.00018903,2]
[363901088,1748916645187,-440.0,0.00018903,2]
[363901090,1748916645197,-581.03,0.00018903,2]
[363901092,1748916645206,-1121.23,0.00018903,2]
[363901094,1748916645215,-1411.27,0.00018903,2]
[363901096,1748916645224,-612.39,0.00018903,2]
[363901098,1748916645234,-1298.78,0.00018903,2]
[363901100,1748916645244,-1350.64,0.00018903,2]
[363901102,1748916645253,-555.43,0.00018903,2]
[363901104,1748916645262,-440.0,0.00018903,2]
[363901106,1748916645272,-1631.27,0.00018903,2]
[363901108,1748916645281,-440.0,0.00018903,2]
[363901109,1748916645290,-1281.77,0.00018903,2]
[363901111,1748916645299,-501.2,0.00018903,2]
[363901113,1748916645309,-440.0,0.00018903,2]
[363901115,1748916645318,-440.0,0.00018903,2]
[363901118,1748916645328,-3244.02,0.00018903,2]
[363901120,1748916645339,-440.0,0.00018903,2]
[363901122,1748916645348,-440.0,0.00018904,2]
[363901124,1748916645357,-440.0,0.00018904,2]
[363901126,1748916645368,-440.0,0.00018904,2]
[363901128,1748916645377,-440.0,0.00018904,2]
[363901130,1748916645387,-440.0,0.00018904,2]
[363901132,1748916645397,-440.0,0.00018904,2]
[363901134,1748916645407,-1325.68,0.00018904,2]
[363901136,1748916645417,-1015.84,0.00018904,2]
[363901138,1748916645428,-440.0,0.00018904,2]
[363901140,1748916645438,-2449.28,0.00018904,2]
[363901142,1748916645447,-1872.97,0.00018904,2]
[363901144,1748916645457,-3386.92,0.00018904,2]
[363901146,1748916645467,-1271.01,0.00018904,2]
[363901148,1748916645478,-903.01,0.00018904,2]
[363901150,1748916645487,-440.0,0.00018904,2]
[363901152,1748916645497,-440.0,0.00018904,2]
[363901154,1748916645506,-1195.46,0.00018904,2]
[363901156,1748916645516,-440.0,0.00018904,2]
[363901158,1748916645525,-440.0,0.00018904,2]
[363901160,1748916645534,-1421.7,0.00018904,2]
[363901162,1748916645544,-440.0,0.00018904,2]
[363901164,1748916645554,-2592.98890641,0.0001898,2]
[363901166,1748916645564,-7531.82,0.00019006,2]
[363901168,1748916645573,-2771.30047706,0.00019072,2]
[363901170,1748916645583,-440.0,0.00019177,2]
[363901172,1748916645593,-495.21,0.00019177,2]
[363901174,1748916645602,-440.0,0.00019177,2]
[363901176,1748916645614,-2904.1,0.00019177,2]
[363901179,1748916645623,-669.46,0.00019177,2]
[363901182,1748916645633,-815.71,0.00019177,2]
[363901184,1748916645642,-407.41524138,0.00019177,2]
[363901187,1748916645652,-480.41,0.00019177,2]
[363901190,1748916645661,-440.0,0.00019177,2]
[363901194,1748916645673,-581.03,0.00019177,2]
[363901198,1748916645683,-1121.23,0.00019177,2]
[363901201,1748916645692,-1411.27,0.00019177,2]
[363901204,1748916645702,-612.39,0.00019177,2]
[363901208,1748916645712,-1298.78,0.00019177,2]
[363901212,1748916645722,-1350.64,0.00019177,2]
[363901217,1748916645731,-555.43,0.00019177,2]
[363901222,1748916645741,-565.50742961,0.00019177,2]
[363901226,1748916645751,-1631.27,0.00019177,2]
[363901234,1748916645769,-440.0,0.00019177,2]
[363901240,1748916645781,-1281.77,0.00019177,2]
[363901244,1748916645792,-151.0,0.00019177,2]
[363901248,1748916645802,-151.61074,0.00019177,2]
[363901252,1748916645811,-501.2,0.00019177,2]
[363901255,1748916645821,-440.0,0.00019177,2]
[363901258,1748916645831,-440.0,0.00019177,2]
[363901262,1748916645840,-3244.02,0.00019177,2]
[363901265,1748916645850,-440.0,0.00019177,2]
[363901268,1748916645860,-151.0,0.00019177,2]
[363901271,1748916645870,-151.0,0.00019177,2]
[363901274,1748916645880,-151.0,0.00019178,2]
[363901277,1748916645890,-214.053211,0.00019178,2]
[363901280,1748916645900,-214.053211,0.00019178,2]
[363901283,1748916645909,-164.618008,0.00019178,2]
[363901287,1748916645921,-164.618008,0.00019178,2]
[363901291,1748916645931,-795.234995,0.00019178,2]
[363901296,1748916645940,-795.234995,0.00019178,2]
[363901300,1748916645949,-151.0,0.00019178,2]
[363901304,1748916645959,-440.0,0.00019178,2]
[363901308,1748916645969,-440.0,0.00019178,2]
[363901312,1748916645978,-440.0,0.00019178,2]
[363901316,1748916645988,-151.0,0.00019178,2]
[363901320,1748916645998,-440.0,0.00019178,2]
[363901324,1748916646008,-440.0,0.00019178,2]
[363901329,1748916646018,-440.0,0.00019178,2]
[363901333,1748916646028,-440.0,0.00019178,2]
[363901337,1748916646037,-440.0,0.00019178,2]
[363901340,1748916646047,-440.0,0.00019178,2]
[363901344,1748916646057,-440.0,0.00019178,2]
[363901347,1748916646069,-440.0,0.00019178,2]
[363901350,1748916646079,-440.0,0.00019178,2]
[363901353,1748916646089,-440.0,0.00019178,2]
[363901356,1748916646099,-440.0,0.00019178,2]
[363901358,1748916646108,-500.0,0.00019178,2]
[363901360,1748916646118,-500.0,0.00019178,2]
[363901362,1748916646128,-500.0,0.00019178,2]
[363901364,1748916646138,-500.0,0.00019178,2]
[363901367,1748916646149,-369.74555745,0.00019178,2]
[363901368,1748916646165,-500.0,0.00019178,2]
[363901370,1748916646175,-500.0,0.00019178,2]
[363901373,1748916646185,-500.0,0.00019178,2]
[363901374,1748916646194,-500.0,0.00019178,2]
[363901376,1748916646205,-500.0,0.00019178,2]
[363901378,1748916646215,-500.0,0.00019178,2]
[363901381,1748916646226,-500.0,0.00019178,2]
[363901383,1748916646238,-500.0,0.00019178,2]
[363901385,1748916646248,-500.0,0.00019178,2]
[363901387,1748916646257,-500.0,0.00019178,2]
[363901389,1748916646268,-440.0,0.00019178,2]
[363901391,1748916646277,-440.0,0.00019178,2]
[363901393,1748916646287,-440.0,0.00019178,2]
[363901395,1748916646296,-1325.68,0.00019178,2]
[363901397,1748916646307,-1015.84,0.00019178,2]
[363901399,1748916646317,-440.0,0.00019178,2]
[363901401,1748916646327,-2449.28,0.00019178,2]
[363901403,1748916646337,-1872.97,0.00019178,2]
[363901405,1748916646346,-3386.92,0.00019178,2]
[363901407,1748916646356,-151.0,0.00019178,2]
[363901409,1748916646366,-1271.01,0.00019178,2]
[363901411,1748916646376,-903.01,0.00019178,2]
[363901413,1748916646385,-440.0,0.00019178,2]
[363901415,1748916646398,-440.0,0.00019178,2]
[363901418,1748916646409,-151.0,0.00019178,2]
[363901420,1748916646419,-151.0,0.00019178,2]
[363901422,1748916646429,-1195.46,0.00019178,2]
[363901424,1748916646439,-436.00236887,0.00019178,2]
[363901426,1748916646449,-440.0,0.00019178,2]
[363901428,1748916646459,-1421.7,0.00019178,2]
[363901430,1748916646470,-248.85139842,0.00019178,2]
[363901432,1748916646479,-164.97696,0.00019178,2]
[363901435,1748916646489,-164.97696,0.00019178,2]
[363901438,1748916646499,-151.0,0.00019178,2]
[363901441,1748916646509,-207.3455,0.00019178,2]
[363901444,1748916646519,-161.0182729,0.00019178,2]
[363901447,1748916646528,-581.4417438,0.00019178,2]
[363901451,1748916646538,-151.0,0.00019205,2]
[363901454,1748916646548,-151.0,0.00019233,2]
[363901457,1748916646558,-156.587,0.00019233,2]
[363901460,1748916646567,-202.91788637,0.0001926,2]
[363901462,1748916646578,-162.380719,0.00019288,2]
[363901464,1748916646589,-2771.30047706,0.00019314,2]
[363901466,1748916646598,-177.48101547,0.00019343,2]
[363901468,1748916646608,-502.88963686,0.00019426,2]
[363901470,1748916646618,-440.0,0.00019451,2]
[363901472,1748916646628,-495.21,0.00019451,2]
[363901474,1748916646638,-440.0,0.00019451,2]
[363901476,1748916646647,-2904.1,0.00019451,2]
[363901478,1748916646657,-669.46,0.00019451,2]
[363901480,1748916646667,-815.71,0.00019451,2]
[363901482,1748916646678,-480.41,0.00019451,2]
[363901484,1748916646688,-440.0,0.00019451,2]
[363901486,1748916646698,-581.03,0.00019451,2]
[363901488,1748916646707,-1121.23,0.00019451,2]
[363901490,1748916646718,-1411.27,0.00019451,2]
[363901492,1748916646730,-612.39,0.00019451,2]
[363901509,1748916646740,-1298.78,0.00019451,2]
[363901512,1748916646900,-1350.64,0.00019451,2]
[363901514,1748916646910,-555.43,0.00019451,2]
[363901516,1748916646920,-1631.27,0.00019451,2]
[363901518,1748916646931,-440.0,0.00019451,2]
[363901520,1748916646940,-1281.77,0.00019451,2]
[363901522,1748916646950,-440.0,0.00019451,2]
[363901524,1748916646960,-501.2,0.00019451,2]
[363901526,1748916646969,-440.0,0.00019451,2]
[363901528,1748916646978,-3244.02,0.00019451,2]
[363901530,1748916646988,-440.0,0.00019451,2]
[363901532,1748916646997,-151.0,0.00019452,2]
[363901533,1748916647006,-151.0,0.00019452,2]
[363901536,1748916647016,-440.0,0.00019452,2]
[363901538,1748916647026,-440.0,0.00019452,2]
[363901540,1748916647035,-440.0,0.00019452,2]
[363901543,1748916647045,-440.0,0.00019452,2]
[363901546,1748916647055,-440.0,0.00019452,2]
[363901549,1748916647064,-440.0,0.00019452,2]
[363901552,1748916647074,-151.0,0.00019452,2]
[363901554,1748916647083,-440.0,0.00019452,2]
[363901558,1748916647093,-1325.68,0.00019452,2]
[363901559,1748916647103,-151.0,0.00019452,2]
[363901562,1748916647112,-151.0,0.00019452,2]
[363901566,1748916647122,-151.0,0.00019452,2]
[363901568,1748916647132,-1015.84,0.00019452,2]
[363901570,1748916647142,-151.459796,0.00019452,2]
[363901572,1748916647151,-151.0,0.00019452,2]
[363901574,1748916647166,-440.0,0.00019452,2]
[363901576,1748916647176,-2449.28,0.00019452,2]
[363901578,1748916647186,-1872.97,0.00019452,2]
[363901580,1748916647196,-3386.92,0.00019452,2]
[363901582,1748916647207,-1271.01,0.00019452,2]
[363901584,1748916647216,-903.01,0.00019452,2]
[363901586,1748916647226,-440.0,0.00019452,2]
[363901588,1748916647239,-440.0,0.00019452,2]
[363901590,1748916647248,-1195.46,0.00019452,2]
[363901592,1748916647256,-440.0,0.00019452,2]
[363901594,1748916647265,-1421.7,0.00019452,2]
[363901596,1748916647275,-313.206641,0.00019452,2]
[363901598,1748916647283,-313.206641,0.00019452,2]
[363901600,1748916647292,-2771.30047706,0.00019555,2]
[363901602,1748916647301,-595.21809465,0.00019569,2]
[363901604,1748916647311,-382.152,0.00019652,2]
[363901606,1748916647320,-177.90736823,0.00019652,2]
[363901608,1748916647329,-151.0,0.000197,2]
[363901610,1748916647339,-151.0,0.00019725,2]
[363901612,1748916647348,-151.0,0.00019725,2]
[363901614,1748916647358,-151.0,0.00019725,2]
[363901616,1748916647368,-151.0,0.00019725,2]
[363901617,1748916647378,-440.0,0.00019725,2]
[363901619,1748916647387,-495.21,0.00019725,2]
[363901621,1748916647398,-418.97403791,0.00019725,2]
[363901623,1748916647408,-2904.1,0.00019725,2]
[363901625,1748916647418,-669.46,0.00019725,2]
[363901627,1748916647429,-815.71,0.00019725,2]
[363901629,1748916647439,-480.41,0.00019725,2]
[363901631,1748916647449,-440.0,0.00019725,2]
[363901633,1748916647459,-581.03,0.00019725,2]
[363901635,1748916647468,-1121.23,0.00019725,2]
[363901637,1748916647478,-1411.27,0.00019725,2]
[363901639,1748916647488,-746.659329,0.00019725,2]
[363901641,1748916647498,-746.659329,0.00019725,2]
[363901643,1748916647509,-407.011422,0.00019725,2]
[363901645,1748916647519,-407.011422,0.00019725,2]
[363901647,1748916647529,-612.39,0.00019725,2]
[363901649,1748916647540,-1298.78,0.00019725,2]
[363901651,1748916647552,-1350.64,0.00019725,2]
[363901653,1748916647563,-555.43,0.00019725,2]
[363901655,1748916647572,-1631.27,0.00019725,2]
[363901657,1748916647583,-440.0,0.00019725,2]
[363901659,1748916647594,-1281.77,0.00019725,2]
[363901661,1748916647603,-440.0,0.00019725,2]
[363901663,1748916647614,-501.2,0.00019725,2]
[363901665,1748916647624,-440.0,0.00019725,2]
[363901667,1748916647635,-3244.02,0.00019725,2]
[363901669,1748916647644,-440.0,0.00019725,2]
[363901671,1748916647654,-385.48464066,0.00019726,2]
[363901673,1748916647664,-440.0,0.00019726,2]
[363901675,1748916647675,-440.0,0.00019726,2]
[363901677,1748916647685,-440.0,0.00019726,2]
[363901679,1748916647695,-440.0,0.00019726,2]
[363901681,1748916647705,-440.0,0.00019726,2]
[363901683,1748916647715,-440.0,0.00019726,2]
[363901685,1748916647724,-1325.68,0.00019726,2]
[363901687,1748916647734,-1015.84,0.00019726,2]
[363901690,1748916647755,-440.0,0.00019726,2]
[363901692,1748916647765,-2449.28,0.00019726,2]
[363901694,1748916647775,-1872.97,0.00019726,2]
[363901696,1748916647785,-3386.92,0.00019726,2]
[363901698,1748916647795,-1271.01,0.00019726,2]
[363901700,1748916647806,-903.01,0.00019726,2]
[363901702,1748916647817,-440.0,0.00019726,2]
[363901704,1748916647827,-440.0,0.00019726,2]
[363901706,1748916647838,-1195.46,0.00019726,2]
[363901708,1748916647849,-440.0,0.00019726,2]
[363901710,1748916647860,-1421.7,0.00019726,2]
[363901712,1748916647870,-2592.98890641,0.00019769,2]
[363901714,1748916647880,-214.053211,0.00019796,2]
[363901716,1748916647890,-214.053211,0.00019796,2]
[363901718,1748916647900,-164.618008,0.00019796,2]
[363901720,1748916647911,-164.618008,0.00019796,2]
[363901722,1748916647923,-795.234995,0.00019796,2]
[363901724,1748916647933,-795.234995,0.00019796,2]
[363901726,1748916647943,-2771.30047706,0.00019797,2]
[363901728,1748916647954,-2000.0,0.000198,4]
[363901730,1748916647965,-1000.0,0.000198,5]
[363901732,1748916647975,-11297.74,0.00019869,2]
[363901734,1748916647986,-152.118527,0.00019869,2]
[363901736,1748916647996,-397.31064,0.00019869,2]
[363901738,1748916648006,-397.31064,0.00019869,2]
[363901741,1748916648017,-151.0,0.00019869,2]
[363901742,1748916648027,-151.0,0.00019869,2]
[363901744,1748916648038,-248.079201,0.00019869,2]
[363901746,1748916648048,-500.0,0.00019941,2]
[363901748,1748916648058,-501.56031537,0.00019941,2]
[363901750,1748916648068,-500.0,0.00019941,2]
[363901752,1748916648078,-500.0,0.00019941,2]
[363901754,1748916648089,-600.0,0.00019941,2]
[363901756,1748916648100,-1000.0,0.00019964,2]
[363901758,1748916648110,-519.53819596,0.00019999,2]
[363901760,1748916648121,-440.0,0.00019999,2]
[363901762,1748916648132,-495.21,0.00019999,2]
[363901764,1748916648142,-2904.1,0.00019999,2]
[363901766,1748916648154,-669.46,0.00019999,2]
[363901768,1748916648167,-815.71,0.00019999,2]
[363901770,1748916648177,-480.41,0.00019999,2]
[363901772,1748916648187,-440.0,0.00019999,2]
[363901774,1748916648197,-581.03,0.00019999,2]
[363901776,1748916648209,-1121.23,0.00019999,2]
[363901778,1748916648219,-1411.27,0.00019999,2]
[363901780,1748916648229,-612.39,0.00019999,2]
[363901782,1748916648240,-1298.78,0.00019999,2]
[363901784,1748916648251,-1350.64,0.00019999,2]
[363901786,1748916648260,-555.43,0.00019999,2]
[363901788,1748916648271,-1631.27,0.00019999,2]
[363901790,1748916648280,-440.0,0.00019999,2]
[363901792,1748916648291,-1281.77,0.00019999,2]
[363901794,1748916648300,-440.0,0.00019999,2]
[363901796,1748916648311,-501.2,0.00019999,2]
[363901798,1748916648320,-440.0,0.00019999,2]
[363901800,1748916648330,-3244.02,0.00019999,2]
[363901802,1748916648341,-517.66036021,0.00019999,2]
[363901804,1748916648351,-151.0,0.0002,2]
[363901806,1748916648361,-151.0,0.0002,2]
[363901808,1748916648371,-151.0,0.0002,2]
[363901810,1748916648382,-151.0,0.0002,2]
[363901812,1748916648391,-184.58001617,0.0002,5]
[363901814,1748916648402,-19432.0,0.0002,2]
[363901816,1748916648412,-440.0,0.0002,2]
[363901818,1748916648424,-440.0,0.0002,2]
[363901820,1748916648434,-440.0,0.0002,2]
[363901822,1748916648445,-440.0,0.0002,2]
[363901824,1748916648455,-440.0,0.0002,2]
[363901826,1748916648465,-440.0,0.0002,2]
[363901828,1748916648476,-1325.68,0.0002,2]
[363901830,1748916648486,-1015.84,0.0002,2]
[363901832,1748916648497,-440.0,0.0002,2]
[363901834,1748916648507,-2449.28,0.0002,2]
[363901836,1748916648518,-1872.97,0.0002,2]
[363901838,1748916648527,-3386.92,0.0002,2]
[363901840,1748916648538,-151.0,0.0002,2]
[363901842,1748916648547,-1271.01,0.0002,2]
[363901844,1748916648557,-903.01,0.0002,2]
[363901846,1748916648567,-440.0,0.0002,2]
[363901848,1748916648577,-440.0,0.0002,2]
[363901850,1748916648590,-151.0,0.0002,2]
[363901852,1748916648599,-151.0,0.0002,2]
[363901854,1748916648610,-1195.46,0.0002,2]
[363901856,1748916648620,-440.0,0.0002,2]
[363901858,1748916648630,-1421.7,0.0002,2]
[363901860,1748916648639,-153.170134,0.0002,2]
[363901862,1748916648648,-164.97696,0.0002,2]
[363901864,1748916648658,-164.97696,0.0002,2]
[363901866,1748916648668,-151.0,0.0002,2]
[363901868,1748916648679,-151.0,0.0002,2]
[363901870,1748916648689,-429.84,0.0002,2]
[363901872,1748916648699,-2771.30047706,0.00020038,2]
[363901874,1748916648709,-223.412349,0.00020038,2]
[363901876,1748916648718,-151.0,0.00020038,2]
[363901878,1748916648728,-223.412349,0.00020038,2]
[363901880,1748916648737,-151.0,0.00020038,2]
[363901882,1748916648746,-151.0,0.00020038,2]
[363901884,1748916648756,-210.443031,0.00020187,2]
[363901886,1748916648767,-151.0,0.00020269,14]
[363901888,1748916648776,-440.0,0.00020273,2]
[363901890,1748916648785,-440.0,0.00020273,2]
[363901891,1748916648794,-440.0,0.00020273,2]
[363901892,1748916648804,-440.0,0.00020273,2]
[363901893,1748916648815,-440.0,0.00020273,2]
[363901894,1748916648825,-217.48967016,0.00020273,2]
[363901895,1748916648834,-202.86243091,0.00020273,2]
[363901896,1748916648844,-495.21,0.00020273,2]
[363901897,1748916648854,-2904.1,0.00020273,2]
[363901898,1748916648864,-1325.68,0.00020273,2]
[363901899,1748916648874,-669.46,0.00020273,2]
[363901900,1748916648884,-815.71,0.00020273,2]
[363901901,1748916648894,-1015.84,0.00020273,2]
[363901902,1748916648904,-480.41,0.00020273,2]
[363901903,1748916648915,-440.0,0.00020273,2]
[363901904,1748916648926,-440.0,0.00020273,2]
[363901905,1748916648936,-2449.28,0.00020273,2]
[363901906,1748916648946,-1872.97,0.00020273,2]
[363901907,1748916648956,-581.03,0.00020273,2]
[363901908,1748916648965,-1121.23,0.00020273,2]
[363901909,1748916648976,-1411.27,0.00020273,2]
[363901910,1748916648986,-3386.92,0.00020273,2]
[363901911,1748916648996,-1271.01,0.00020273,2]
[363901912,1748916649008,-903.01,0.00020273,2]
[363901913,1748916649018,-612.39,0.00020273,2]
[363901914,1748916649028,-440.0,0.00020273,2]
[363901915,1748916649038,-1298.78,0.00020273,2]
[363901917,1748916649048,-1350.64,0.00020273,2]
[363901918,1748916649058,-440.0,0.00020273,2]
[363901919,1748916649067,-1195.46,0.00020273,2]
[363901921,1748916649078,-555.43,0.00020273,2]
[363901922,1748916649087,-299.83971905,0.00020273,2]
[363901923,1748916649097,-1631.27,0.00020273,2]
[363901924,1748916649107,-562.04374743,0.00020273,2]
[363901925,1748916649117,-1281.77,0.00020273,2]
[363901926,1748916649127,-1421.7,0.00020273,2]
[363901927,1748916649136,-440.0,0.00020273,2]
[363901928,1748916649146,-501.2,0.00020273,2]
[363901929,1748916649156,-440.0,0.00020273,2]
[363901930,1748916649171,-3244.02,0.00020273,2]
[363901931,1748916649182,-2771.30047706,0.00020279,3]
[363901932,1748916649191,-503.39546606,0.00020489,2]
[363901933,1748916649201,-1000.0,0.00020489,2]
[363901934,1748916649211,-505.69346178,0.00020489,2]
[363901935,1748916649222,-1200.0,0.00020489,2]
[363901936,1748916649234,-2771.30047706,0.00020521,3]
[363901937,1748916649244,-151.0,0.00020538,16]
[363901938,1748916649255,-214.053211,0.00020547,2]
[363901939,1748916649266,-214.053211,0.00020547,2]
[363901940,1748916649277,-164.618008,0.00020547,2]
[363901941,1748916649288,-164.618008,0.00020547,2]
[363901942,1748916649298,-795.234995,0.00020547,2]
[363901943,1748916649308,-795.234995,0.00020547,2]
[363901944,1748916649319,-440.0,0.00020547,2]
[363901945,1748916649450,-440.0,0.00020547,2]
[363901946,1748916649461,-440.0,0.00020547,2]
[363901947,1748916649472,-440.0,0.00020547,2]
[363901948,1748916649482,-440.0,0.00020547,2]
[363901949,1748916649491,-151.0,0.00020547,2]
[363901950,1748916649501,-495.21,0.00020547,2]
[363901951,1748916649511,-2904.1,0.00020547,2]
[363901952,1748916649520,-1325.68,0.00020547,2]
[363901953,1748916649530,-151.0,0.00020547,2]
[363901954,1748916649540,-669.46,0.00020547,2]
[363901955,1748916649550,-151.0,0.00020547,2]
[363901957,1748916649559,-815.71,0.00020547,2]
[363901959,1748916649569,-151.0,0.00020547,2]
[363901962,1748916649578,-1015.84,0.00020547,2]
[363901963,1748916649588,-290.835878,0.00020547,2]
[363901966,1748916649598,-480.41,0.00020547,2]
[363901968,1748916649607,-440.0,0.00020547,2]
[363901970,1748916649617,-440.0,0.00020547,2]
[363901972,1748916649627,-2449.28,0.00020547,2]
[363901974,1748916649637,-1872.97,0.00020547,2]
[363901976,1748916649646,-581.03,0.00020547,2]
[363901978,1748916649656,-1121.23,0.00020547,2]
[363901980,1748916649666,-1411.27,0.00020547,2]
[363901982,1748916649677,-3386.92,0.00020547,2]
[363901984,1748916649686,-1271.01,0.00020547,2]
[363901986,1748916649696,-903.01,0.00020547,2]
[363901988,1748916649705,-612.39,0.00020547,2]
[363901990,1748916649715,-440.0,0.00020547,2]
[363901992,1748916649725,-1298.78,0.00020547,2]
[363901994,1748916649735,-1350.64,0.00020547,2]
[363901996,1748916649744,-440.0,0.00020547,2]
[363901998,1748916649754,-1195.46,0.00020547,2]
[363902000,1748916649763,-555.43,0.00020547,2]
[363902002,1748916649773,-1631.27,0.00020547,2]
[363902004,1748916649782,-1281.77,0.00020547,2]
[363902006,1748916649792,-1421.7,0.00020547,2]
[363902008,1748916649801,-440.0,0.00020547,2]
[363902010,1748916649810,-501.2,0.00020547,2]
[363902012,1748916649820,-172.22279902,0.00020547,2]
[363902014,1748916649829,-3244.02,0.00020547,2]
[363902016,1748916649839,-313.206641,0.00020547,2]
[363902018,1748916649849,-313.206641,0.00020547,2]
[363902020,1748916649858,-595.21809465,0.00020646,2]
[363902022,1748916649868,-15063.65,0.00020733,2]
[363902024,1748916649878,-261.942965,0.00020733,2]
[363902026,1748916649887,-154.564736,0.00020733,2]
[363902028,1748916649897,-151.0,0.00020733,2]
[363902030,1748916649906,-151.0,0.00020733,2]
[363902032,1748916649915,-746.659329,0.00020733,2]
[363902034,1748916649924,-746.659329,0.00020733,2]
[363902036,1748916649934,-407.011422,0.00020733,2]
[363902038,1748916649943,-407.011422,0.00020733,2]
[363902040,1748916649952,-2771.30047706,0.00020762,3]
[363902042,1748916649962,-1544.06,0.000208,2]
[363902044,1748916649971,-151.0,0.00020808,17]
[363902046,1748916649980,-151.0,0.00020821,2]
[363902048,1748916649990,-151.0,0.00020821,2]
[363902050,1748916649999,-151.0,0.00020821,2]
[363902051,1748916650009,-151.0,0.00020821,2]
[363902053,1748916650018,-440.0,0.00020821,2]
[363902056,1748916650028,-440.0,0.00020821,2]
[363902058,1748916650038,-440.0,0.00020821,2]
[363902060,1748916650047,-522.71695512,0.00020821,2]
[363902062,1748916650057,-440.0,0.00020821,2]
[363902064,1748916650066,-397.31064,0.00020821,2]
[363902066,1748916650075,-397.31064,0.00020821,2]
[363902068,1748916650085,-495.21,0.00020821,2]
[363902070,1748916650095,-2904.1,0.00020821,2]
[363902072,1748916650104,-151.0,0.00020821,2]
[363902074,1748916650114,-151.0,0.00020821,2]
[363902076,1748916650123,-1325.68,0.00020821,2]
[363902078,1748916650132,-669.46,0.00020821,2]
[363902080,1748916650143,-815.71,0.00020821,2]
[363902082,1748916650152,-1015.84,0.00020821,2]
[363902084,1748916650165,-480.41,0.00020821,2]
[363902086,1748916650174,-440.0,0.00020821,2]
[363902088,1748916650184,-440.0,0.00020821,2]
[363902089,1748916650193,-2449.28,0.00020821,2]